[Event "Titled Tuesday Blitz March 01 Early 2022"]
[White "Zhigalko, Sergei"]
[Black "Eynullayev, Altay"]
[WhiteFideId "13502956"]
[BlackFideId "13413562"]
[WhiteElo "2662"]
[BlackElo "2079"]
[Result "1-0"]
[Round "01"]
[TimeControl "180+1"]
[Date "2022.03.01"]
[WhiteClock "0:00:04"]
[BlackClock "0:00:15"]

1. e4 {[%clk 0:03:00]}  c5 {[%clk 0:02:40]} 2. Nf3 {[%clk 0:03:00]}  e6 {[%clk 0:02:39]} 3. c3 {[%clk 0:03:00]}  Nf6 {[%clk 0:02:38]} 4. e5 {[%clk 0:03:01]}  Nd5 {[%clk 0:02:38]} 5. Bc4 {[%clk 0:03:01]}  d6 {[%clk 0:02:36]} 6. d4 {[%clk 0:03:01]}  cxd4 {[%clk 0:02:35]} 7. cxd4 {[%clk 0:03:01]}  Be7 {[%clk 0:02:34]} 8. O-O {[%clk 0:03:01]}  Nc6 {[%clk 0:02:35]} 9. Bd2 {[%clk 0:03:00]}  O-O {[%clk 0:02:35]} 10. Nc3 {[%clk 0:02:55]}  Nxc3 {[%clk 0:02:34]} 11. Bxc3 {[%clk 0:02:56]}  Bd7 {[%clk 0:02:29]} 12. Qe2 {[%clk 0:02:54]}  Rc8 {[%clk 0:02:29]} 13. Rfe1 {[%clk 0:02:54]}  Na5 {[%clk 0:02:25]} 14. Bd3 {[%clk 0:02:53]}  b5 {[%clk 0:02:22]} 15. Bxb5 {[%clk 0:02:39]}  Bxb5 {[%clk 0:02:20]} 16. Qxb5 {[%clk 0:02:40]}  Nc4 {[%clk 0:02:20]} 17. d5 {[%clk 0:02:33]}  exd5 {[%clk 0:01:51]} 18. Qxd5 {[%clk 0:02:26]}  dxe5 {[%clk 0:01:51]} 19. Qxd8 {[%clk 0:02:22]}  Rfxd8 {[%clk 0:01:52]} 20. Nxe5 {[%clk 0:02:21]}  Nxe5 {[%clk 0:01:53]} 21. Bxe5 {[%clk 0:02:20]}  Bc5 {[%clk 0:01:50]} 22. Rad1 {[%clk 0:02:15]}  f6 {[%clk 0:01:48]} 23. Bc3 {[%clk 0:02:13]}  Kf7 {[%clk 0:01:45]} 24. Kf1 {[%clk 0:02:12]}  Bb6 {[%clk 0:01:43]} 25. f3 {[%clk 0:01:49]}  h5 {[%clk 0:01:42]} 26. Rxd8 {[%clk 0:01:42]}  Rxd8 {[%clk 0:01:42]} 27. Ke2 {[%clk 0:01:42]}  Bc7 {[%clk 0:01:34]} 28. h3 {[%clk 0:01:29]}  Bg3 {[%clk 0:01:29]} 29. Rd1 {[%clk 0:01:27]}  Re8+ {[%clk 0:01:29]} 30. Kf1 {[%clk 0:01:24]}  Kg6 {[%clk 0:01:22]} 31. Rd7 {[%clk 0:01:20]}  a6 {[%clk 0:01:22]} 32. Rd5 {[%clk 0:01:15]}  Re6 {[%clk 0:01:19]} 33. a4 {[%clk 0:01:10]}  h4 {[%clk 0:01:08]} 34. Rd7 {[%clk 0:00:55]}  Kh6 {[%clk 0:01:03]} 35. Rd4 {[%clk 0:00:47]}  Kg6 {[%clk 0:01:01]} 36. Rg4+ {[%clk 0:00:39]}  Kf7 {[%clk 0:01:00]} 37. Re4 {[%clk 0:00:38]}  Rd6 {[%clk 0:00:57]} 38. Ke2 {[%clk 0:00:38]}  Kg6 {[%clk 0:00:55]} 39. b4 {[%clk 0:00:32]}  Rc6 {[%clk 0:00:54]} 40. Kd3 {[%clk 0:00:31]}  Kf5 {[%clk 0:00:51]} 41. b5 {[%clk 0:00:21]}  axb5 {[%clk 0:00:51]} 42. axb5 {[%clk 0:00:22]}  Rc8 {[%clk 0:00:49]} 43. b6 {[%clk 0:00:18]}  Bf2 {[%clk 0:00:42]} 44. b7 {[%clk 0:00:15]}  Rb8 {[%clk 0:00:42]} 45. Re7 {[%clk 0:00:14]}  Kg6 {[%clk 0:00:39]} 46. Rd7 {[%clk 0:00:10]}  Bg3 {[%clk 0:00:36]} 47. Bd4 {[%clk 0:00:08]}  Kh6 {[%clk 0:00:35]} 48. Ba7 {[%clk 0:00:08]}  Re8 {[%clk 0:00:35]} 49. Kc4 {[%clk 0:00:05]}  Re2 {[%clk 0:00:35]} 50. Bb6 {[%clk 0:00:02]}  Rc2+ {[%clk 0:00:34]} 51. Kb5 {[%clk 0:00:02]}  Rb2+ {[%clk 0:00:34]} 52. Kc6 {[%clk 0:00:02]}  Rxg2 {[%clk 0:00:32]} 53. Bc7 {[%clk 0:00:03]}  Rc2+ {[%clk 0:00:33]} 54. Kb6 {[%clk 0:00:03]}  Rb2+ {[%clk 0:00:33]} 55. Ka7 {[%clk 0:00:03]}  Bf2+ {[%clk 0:00:32]} 56. Kb8 {[%clk 0:00:03]}  g5 {[%clk 0:00:30]} 57. Kc8 {[%clk 0:00:04]}  Ba7 {[%clk 0:00:31]} 58. Rd6 {[%clk 0:00:04]}  Kg6 {[%clk 0:00:30]} 59. Ra6 {[%clk 0:00:04]}  Bd4 {[%clk 0:00:15]} 60. b8=Q {[%clk 0:00:04]}  Rxb8+ {[%clk 0:00:16]} 61. Kxb8 {[%clk 0:00:05]}  Kf5 {[%clk 0:00:16]} 62. Kc8 {[%clk 0:00:04]}  Kg6 {[%clk 0:00:15]} 63. Kd7 {[%clk 0:00:04]}  Kh5 {[%clk 0:00:15]} 64. Ke6 {[%clk 0:00:04]} 1-0


[Site "https://www.chess.com"]

[Event "Titled Tuesday Blitz March 01 Early 2022"]
[White "Aaditya Dhingra"]
[Black "Gerbelli Neto, Eduardo"]
[WhiteFideId "25678191"]
[BlackFideId "2103281"]
[WhiteElo "1789"]
[BlackElo "2178"]
[Result "0-1"]
[Round "02"]
[TimeControl "180+1"]
[Date "2022.03.01"]
[WhiteClock "0:00:03"]
[BlackClock "0:00:23"]

1. Nf3 {[%clk 0:03:00]}  Nf6 {[%clk 0:02:58]} 2. c4 {[%clk 0:02:59]}  c5 {[%clk 0:02:58]} 3. g3 {[%clk 0:02:59]}  d5 {[%clk 0:02:57]} 4. Bg2 {[%clk 0:02:56]}  Nc6 {[%clk 0:02:56]} 5. O-O {[%clk 0:02:54]}  e5 {[%clk 0:02:55]} 6. cxd5 {[%clk 0:02:53]}  Nxd5 {[%clk 0:02:55]} 7. Nc3 {[%clk 0:02:52]}  Nc7 {[%clk 0:02:54]} 8. d3 {[%clk 0:02:50]}  Be7 {[%clk 0:02:54]} 9. Be3 {[%clk 0:02:49]}  O-O {[%clk 0:02:51]} 10. Rc1 {[%clk 0:02:49]}  b6 {[%clk 0:02:51]} 11. h4 {[%clk 0:02:43]}  f6 {[%clk 0:02:48]} 12. Ng5 {[%clk 0:02:32]}  Nd4 {[%clk 0:02:40]} 13. Bxa8 {[%clk 0:02:27]}  Nxa8 {[%clk 0:02:40]} 14. Nf3 {[%clk 0:02:02]}  Bb7 {[%clk 0:02:34]} 15. Bxd4 {[%clk 0:01:59]}  exd4 {[%clk 0:02:34]} 16. Ne4 {[%clk 0:01:58]}  Nc7 {[%clk 0:02:26]} 17. Qb3+ {[%clk 0:01:53]}  Kh8 {[%clk 0:02:25]} 18. Rfd1 {[%clk 0:01:50]}  Nd5 {[%clk 0:02:24]} 19. Ned2 {[%clk 0:01:37]}  f5 {[%clk 0:02:19]} 20. Ne5 {[%clk 0:01:25]}  f4 {[%clk 0:02:08]} 21. Ndf3 {[%clk 0:01:25]}  Qd6 {[%clk 0:01:59]} 22. g4 {[%clk 0:01:22]}  Bxh4 {[%clk 0:01:49]} 23. Kg2 {[%clk 0:01:10]}  Bf6 {[%clk 0:01:44]} 24. Nc4 {[%clk 0:01:08]}  Qe7 {[%clk 0:01:43]} 25. Rh1 {[%clk 0:01:04]}  Qxe2 {[%clk 0:00:55]} 26. Rh3 {[%clk 0:00:13]}  Ne3+ {[%clk 0:00:50]} 27. Nxe3 {[%clk 0:00:12]}  fxe3 {[%clk 0:00:49]} 28. Rf1 {[%clk 0:00:11]}  Be7 {[%clk 0:00:33]} 29. Qe6 {[%clk 0:00:09]}  Rxf3 {[%clk 0:00:26]} 30. Qxe7 {[%clk 0:00:05]}  Rf7+ {[%clk 0:00:25]} 31. Qxb7 {[%clk 0:00:04]}  Rxb7 {[%clk 0:00:24]} 32. Rf3 {[%clk 0:00:03]}  Kg8 {[%clk 0:00:23]} 0-1


[Site "https://www.chess.com"]

[Event "Titled Tuesday Blitz March 01 Early 2022"]
[White "Alavkin, Arseny"]
[Black "Kejzar, Petra"]
[WhiteFideId "4120612"]
[BlackFideId "14610213"]
[WhiteElo "2391"]
[BlackElo "2006"]
[Result "1-0"]
[Round "02"]
[TimeControl "180+1"]
[Date "2022.03.01"]
[WhiteClock "0:01:55"]
[BlackClock "0:00:34"]

1. d4 {[%clk 0:02:26]}  Nf6 {[%clk 0:02:59]} 2. c4 {[%clk 0:02:24]}  e6 {[%clk 0:02:59]} 3. Nf3 {[%clk 0:02:24]}  d5 {[%clk 0:02:57]} 4. Nc3 {[%clk 0:02:24]}  Bb4 {[%clk 0:02:56]} 5. Qa4+ {[%clk 0:02:23]}  Nc6 {[%clk 0:02:56]} 6. a3 {[%clk 0:02:23]}  Bxc3+ {[%clk 0:02:55]} 7. bxc3 {[%clk 0:02:24]}  O-O {[%clk 0:02:54]} 8. Bf4 {[%clk 0:02:23]}  Bd7 {[%clk 0:02:51]} 9. Qc2 {[%clk 0:02:23]}  Na5 {[%clk 0:02:45]} 10. cxd5 {[%clk 0:02:22]}  exd5 {[%clk 0:02:45]} 11. e3 {[%clk 0:02:22]}  Qe8 {[%clk 0:02:42]} 12. Rb1 {[%clk 0:02:19]}  Ba4 {[%clk 0:02:37]} 13. Qf5 {[%clk 0:02:16]}  Qc8 {[%clk 0:02:17]} 14. Qxc8 {[%clk 0:02:12]}  Raxc8 {[%clk 0:02:16]} 15. Bd3 {[%clk 0:02:11]}  c5 {[%clk 0:02:04]} 16. dxc5 {[%clk 0:02:11]}  Ne4 {[%clk 0:01:53]} 17. Bxe4 {[%clk 0:02:08]}  dxe4 {[%clk 0:01:53]} 18. Nd4 {[%clk 0:02:09]}  Rfe8 {[%clk 0:01:34]} 19. Bd6 {[%clk 0:02:06]}  Nc4 {[%clk 0:01:23]} 20. Rb4 {[%clk 0:02:02]}  Nxd6 {[%clk 0:01:04]} 21. cxd6 {[%clk 0:02:03]}  Rxc3 {[%clk 0:01:03]} 22. O-O {[%clk 0:02:04]}  Bc6 {[%clk 0:00:40]} 23. Nxc6 {[%clk 0:01:57]}  bxc6 {[%clk 0:00:41]} 24. Rd1 {[%clk 0:01:55]}  Rxa3 {[%clk 0:00:35]} 25. d7 {[%clk 0:01:54]}  Rd8 {[%clk 0:00:34]} 26. Rb8 {[%clk 0:01:55]} 1-0


[Site "https://www.chess.com"]

[Event "Titled Tuesday Blitz March 01 Early 2022"]
[White "Ambartsumova, Karina"]
[Black "Zierk, Steven"]
[WhiteFideId "4166299"]
[BlackFideId "2034255"]
[WhiteElo "2262"]
[BlackElo "2494"]
[Result "0-1"]
[Round "02"]
[TimeControl "180+1"]
[Date "2022.03.01"]
[WhiteClock "0:00:06"]
[BlackClock "0:00:21"]

1. d4 {[%clk 0:02:58]}  d5 {[%clk 0:02:58]} 2. c4 {[%clk 0:02:56]}  dxc4 {[%clk 0:02:59]} 3. Nf3 {[%clk 0:02:49]}  Nf6 {[%clk 0:02:59]} 4. Qa4+ {[%clk 0:02:49]}  c6 {[%clk 0:02:50]} 5. Qxc4 {[%clk 0:02:48]}  Bf5 {[%clk 0:02:51]} 6. Nc3 {[%clk 0:02:45]}  e6 {[%clk 0:02:46]} 7. Bg5 {[%clk 0:02:28]}  Be7 {[%clk 0:02:39]} 8. e3 {[%clk 0:02:25]}  Nbd7 {[%clk 0:02:35]} 9. Qb3 {[%clk 0:02:23]}  Qb6 {[%clk 0:02:33]} 10. Qxb6 {[%clk 0:02:17]}  axb6 {[%clk 0:02:34]} 11. Bc4 {[%clk 0:02:00]}  h6 {[%clk 0:02:26]} 12. Bh4 {[%clk 0:01:59]}  b5 {[%clk 0:02:24]} 13. Bb3 {[%clk 0:01:59]}  b4 {[%clk 0:02:18]} 14. Ne2 {[%clk 0:01:54]}  g5 {[%clk 0:02:18]} 15. Bg3 {[%clk 0:01:54]}  Ne4 {[%clk 0:02:19]} 16. Nd2 {[%clk 0:01:30]}  Nxd2 {[%clk 0:02:07]} 17. Kxd2 {[%clk 0:01:31]}  Kf8 {[%clk 0:01:43]} 18. f3 {[%clk 0:01:19]}  Kg7 {[%clk 0:01:40]} 19. e4 {[%clk 0:01:17]}  Bg6 {[%clk 0:01:39]} 20. Rhd1 {[%clk 0:01:18]}  h5 {[%clk 0:01:38]} 21. Bf2 {[%clk 0:01:15]}  h4 {[%clk 0:01:36]} 22. h3 {[%clk 0:01:14]}  Rhd8 {[%clk 0:01:23]} 23. Ke1 {[%clk 0:01:12]}  e5 {[%clk 0:01:18]} 24. Rac1 {[%clk 0:00:56]}  exd4 {[%clk 0:01:15]} 25. Bxd4+ {[%clk 0:00:51]}  Bf6 {[%clk 0:01:15]} 26. Bxf6+ {[%clk 0:00:46]}  Kxf6 {[%clk 0:01:15]} 27. Rd6+ {[%clk 0:00:45]}  Ke7 {[%clk 0:01:15]} 28. Rcd1 {[%clk 0:00:32]}  Ne5 {[%clk 0:01:06]} 29. Rxd8 {[%clk 0:00:32]}  Rxd8 {[%clk 0:01:07]} 30. Rxd8 {[%clk 0:00:32]}  Kxd8 {[%clk 0:01:08]} 31. Kd2 {[%clk 0:00:32]}  c5 {[%clk 0:01:05]} 32. Ke3 {[%clk 0:00:29]}  f6 {[%clk 0:00:59]} 33. Bd5 {[%clk 0:00:28]}  Kc7 {[%clk 0:00:54]} 34. Nc1 {[%clk 0:00:19]}  b6 {[%clk 0:00:45]} 35. Nb3 {[%clk 0:00:19]}  Be8 {[%clk 0:00:43]} 36. Nd2 {[%clk 0:00:18]}  Bb5 {[%clk 0:00:43]} 37. f4 {[%clk 0:00:16]}  Ng6 {[%clk 0:00:43]} 38. fxg5 {[%clk 0:00:15]}  fxg5 {[%clk 0:00:44]} 39. Kf3 {[%clk 0:00:14]}  Ne5+ {[%clk 0:00:42]} 40. Ke3 {[%clk 0:00:14]}  Kd6 {[%clk 0:00:42]} 41. Bg8 {[%clk 0:00:10]}  c4 {[%clk 0:00:33]} 42. Kd4 {[%clk 0:00:07]}  c3 {[%clk 0:00:30]} 43. bxc3 {[%clk 0:00:06]}  Nc6+ {[%clk 0:00:30]} 44. Ke3 {[%clk 0:00:07]}  bxc3 {[%clk 0:00:31]} 45. Nb3 {[%clk 0:00:07]}  Ke5 {[%clk 0:00:25]} 46. Bd5 {[%clk 0:00:07]}  Nb4 {[%clk 0:00:24]} 47. Bb7 {[%clk 0:00:07]}  Nxa2 {[%clk 0:00:23]} 48. Bd5 {[%clk 0:00:05]}  c2 {[%clk 0:00:20]} 49. Kd2 {[%clk 0:00:05]}  c1=Q+ {[%clk 0:00:20]} 50. Nxc1 {[%clk 0:00:05]}  Nxc1 {[%clk 0:00:21]} 51. Kxc1 {[%clk 0:00:06]}  Bf1 {[%clk 0:00:21]} 0-1


[Site "https://www.chess.com"]

[Event "Titled Tuesday Blitz March 01 Early 2022"]
[White "Ankerst, Mihael"]
[Black "Gabdrakhmanov, Azat"]
[WhiteFideId "14602369"]
[BlackFideId "34189197"]
[WhiteElo "2356"]
[BlackElo "2279"]
[Result "0-1"]
[Round "02"]
[TimeControl "180+1"]
[Date "2022.03.01"]
[WhiteClock "0:00:27"]
[BlackClock "0:00:43"]

1. e4 {[%clk 0:02:58]}  c5 {[%clk 0:03:00]} 2. Nf3 {[%clk 0:02:57]}  e6 {[%clk 0:03:00]} 3. d4 {[%clk 0:02:57]}  cxd4 {[%clk 0:03:01]} 4. Nxd4 {[%clk 0:02:58]}  a6 {[%clk 0:03:01]} 5. c4 {[%clk 0:02:58]}  Qc7 {[%clk 0:03:01]} 6. Nc3 {[%clk 0:02:59]}  Nf6 {[%clk 0:03:00]} 7. Be2 {[%clk 0:02:59]}  Be7 {[%clk 0:03:00]} 8. O-O {[%clk 0:02:58]}  d6 {[%clk 0:03:00]} 9. Be3 {[%clk 0:02:59]}  Nbd7 {[%clk 0:02:59]} 10. f3 {[%clk 0:02:59]}  b6 {[%clk 0:02:58]} 11. Qd2 {[%clk 0:02:59]}  Bb7 {[%clk 0:02:58]} 12. Rfc1 {[%clk 0:03:00]}  Rc8 {[%clk 0:02:58]} 13. a4 {[%clk 0:03:00]}  O-O {[%clk 0:02:58]} 14. a5 {[%clk 0:03:00]}  bxa5 {[%clk 0:02:58]} 15. Nb3 {[%clk 0:03:00]}  Qb8 {[%clk 0:02:53]} 16. Nxa5 {[%clk 0:03:00]}  Ba8 {[%clk 0:02:53]} 17. Na4 {[%clk 0:03:01]}  Bd8 {[%clk 0:02:51]} 18. b4 {[%clk 0:03:01]}  Ne5 {[%clk 0:02:49]} 19. c5 {[%clk 0:02:56]}  d5 {[%clk 0:02:32]} 20. Bxa6 {[%clk 0:02:30]}  Rc7 {[%clk 0:02:30]} 21. Bf4 {[%clk 0:02:24]}  Ra7 {[%clk 0:02:26]} 22. b5 {[%clk 0:02:21]}  Bc7 {[%clk 0:02:19]} 23. Bg5 {[%clk 0:02:02]}  dxe4 {[%clk 0:02:14]} 24. Bxf6 {[%clk 0:02:00]}  gxf6 {[%clk 0:02:14]} 25. f4 {[%clk 0:01:45]}  Nd3 {[%clk 0:02:14]} 26. g3 {[%clk 0:01:43]}  Nxc1 {[%clk 0:02:07]} 27. Rxc1 {[%clk 0:01:44]}  Rd8 {[%clk 0:02:04]} 28. Qc3 {[%clk 0:01:44]}  Rd3 {[%clk 0:01:39]} 29. Qe1 {[%clk 0:01:16]}  Rxa6 {[%clk 0:01:24]} 30. bxa6 {[%clk 0:01:13]}  Qb5 {[%clk 0:01:23]} 31. Nb6 {[%clk 0:01:12]}  Bxb6 {[%clk 0:01:22]} 32. cxb6 {[%clk 0:01:11]}  Qxb6+ {[%clk 0:01:23]} 33. Kf1 {[%clk 0:01:11]}  Qxa6 {[%clk 0:01:09]} 34. Kg1 {[%clk 0:01:05]}  Qa7+ {[%clk 0:01:06]} 35. Kf1 {[%clk 0:01:04]}  e3 {[%clk 0:01:00]} 36. Nc6 {[%clk 0:00:48]}  Bxc6 {[%clk 0:00:58]} 37. Rxc6 {[%clk 0:00:49]}  Qd4 {[%clk 0:00:57]} 38. Rc1 {[%clk 0:00:37]}  Rd2 {[%clk 0:00:56]} 39. Kg1 {[%clk 0:00:33]}  Qe4 {[%clk 0:00:44]} 40. Rd1 {[%clk 0:00:27]}  Qg2# {[%clk 0:00:43]} 0-1


[Site "https://www.chess.com"]

[Event "Titled Tuesday Blitz March 01 Early 2022"]
[White "Asadli, Vugar"]
[Black "Vantika, Agrawal"]
[WhiteFideId "13405764"]
[BlackFideId "25050389"]
[WhiteElo "2635"]
[BlackElo "2075"]
[Result "1-0"]
[Round "02"]
[TimeControl "180+1"]
[Date "2022.03.01"]
[WhiteClock "0:01:39"]
[BlackClock "0:00:02"]

1. e4 {[%clk 0:03:00]}  c5 {[%clk 0:02:59]} 2. Nc3 {[%clk 0:03:00]}  d6 {[%clk 0:02:59]} 3. Bb5+ {[%clk 0:03:00]}  Bd7 {[%clk 0:02:54]} 4. Bxd7+ {[%clk 0:03:00]}  Qxd7 {[%clk 0:02:53]} 5. d4 {[%clk 0:02:59]}  cxd4 {[%clk 0:02:52]} 6. Qxd4 {[%clk 0:03:00]}  Nc6 {[%clk 0:02:51]} 7. Qd3 {[%clk 0:03:01]}  g6 {[%clk 0:02:41]} 8. Nf3 {[%clk 0:03:00]}  Bg7 {[%clk 0:02:41]} 9. Bg5 {[%clk 0:03:01]}  Nf6 {[%clk 0:02:36]} 10. O-O-O {[%clk 0:03:00]}  Ng4 {[%clk 0:02:24]} 11. Bh4 {[%clk 0:02:54]}  Rc8 {[%clk 0:02:11]} 12. Nd5 {[%clk 0:02:45]}  Nge5 {[%clk 0:01:17]} 13. Nxe5 {[%clk 0:02:41]}  Nxe5 {[%clk 0:01:16]} 14. Qb3 {[%clk 0:02:32]}  Nc6 {[%clk 0:01:12]} 15. Kb1 {[%clk 0:02:22]}  O-O {[%clk 0:01:10]} 16. f4 {[%clk 0:02:19]}  Rfe8 {[%clk 0:01:05]} 17. f5 {[%clk 0:02:14]}  gxf5 {[%clk 0:00:56]} 18. Qh3 {[%clk 0:02:13]}  Ne5 {[%clk 0:00:29]} 19. exf5 {[%clk 0:02:12]}  Qa4 {[%clk 0:00:22]} 20. f6 {[%clk 0:01:37]}  Qxc2+ {[%clk 0:00:20]} 21. Ka1 {[%clk 0:01:38]}  exf6 {[%clk 0:00:13]} 22. Bxf6 {[%clk 0:01:38]}  Qg6 {[%clk 0:00:04]} 23. Ne7+ {[%clk 0:01:38]}  Rxe7 {[%clk 0:00:02]} 24. Qxc8+ {[%clk 0:01:38]}  Bf8 {[%clk 0:00:02]} 25. Bxe7 {[%clk 0:01:39]} 1-0


[Site "https://www.chess.com"]

[Event "Titled Tuesday Blitz March 01 Early 2022"]
[White "Batsiashvili, Nino"]
[Black "Fajdetic, Hrvoje"]
[WhiteFideId "13602993"]
[BlackFideId "14501945"]
[WhiteElo "2230"]
[BlackElo "2140"]
[Result "1/2-1/2"]
[Round "02"]
[TimeControl "180+1"]
[Date "2022.03.01"]
[WhiteClock "0:00:50"]
[BlackClock "0:00:13"]

1. d4 {[%clk 0:02:56]}  e6 {[%clk 0:02:20]} 2. c4 {[%clk 0:02:55]}  f5 {[%clk 0:02:19]} 3. Nc3 {[%clk 0:02:56]}  Nf6 {[%clk 0:02:18]} 4. g3 {[%clk 0:02:52]}  Bb4 {[%clk 0:02:18]} 5. Bg2 {[%clk 0:02:53]}  Bxc3+ {[%clk 0:02:17]} 6. bxc3 {[%clk 0:02:54]}  O-O {[%clk 0:02:18]} 7. c5 {[%clk 0:02:52]}  b6 {[%clk 0:02:15]} 8. Bxa8 {[%clk 0:02:51]}  c6 {[%clk 0:02:16]} 9. cxb6 {[%clk 0:02:46]}  axb6 {[%clk 0:02:17]} 10. Bf4 {[%clk 0:02:29]}  d6 {[%clk 0:02:11]} 11. Rb1 {[%clk 0:02:14]}  Nd5 {[%clk 0:02:03]} 12. Qb3 {[%clk 0:02:10]}  Ba6 {[%clk 0:01:58]} 13. c4 {[%clk 0:02:06]}  Nxf4 {[%clk 0:01:58]} 14. gxf4 {[%clk 0:02:07]}  b5 {[%clk 0:01:55]} 15. cxb5 {[%clk 0:02:06]}  Bxb5 {[%clk 0:01:44]} 16. a4 {[%clk 0:02:03]}  Ba6 {[%clk 0:01:42]} 17. Qxe6+ {[%clk 0:02:03]}  Kh8 {[%clk 0:01:42]} 18. Qb3 {[%clk 0:01:43]}  Re8 {[%clk 0:01:33]} 19. e3 {[%clk 0:01:41]}  Qa5+ {[%clk 0:00:26]} 20. Qb4 {[%clk 0:01:35]}  Qd5 {[%clk 0:00:25]} 21. Qxb8 {[%clk 0:01:33]}  Rc8 {[%clk 0:00:19]} 22. Qa7 {[%clk 0:01:16]}  Qc4 {[%clk 0:00:17]} 23. Kd2 {[%clk 0:00:49]}  Qd3+ {[%clk 0:00:15]} 24. Kc1 {[%clk 0:00:49]}  Qc3+ {[%clk 0:00:14]} 25. Kd1 {[%clk 0:00:49]}  Qd3+ {[%clk 0:00:13]} 26. Kc1 {[%clk 0:00:50]}  Qc3+ {[%clk 0:00:13]} 27. Kd1 {[%clk 0:00:50]}  Qd3+ {[%clk 0:00:13]} 28. Kc1 {[%clk 0:00:50]} 1/2-1/2


[Site "https://www.chess.com"]

[Event "Titled Tuesday Blitz March 01 Early 2022"]
[White "Bilan, Danila"]
[Black "Quirke, Jeffrey"]
[WhiteFideId "24161918"]
[BlackFideId "2013029"]
[WhiteElo "2164"]
[BlackElo "2151"]
[Result "1-0"]
[Round "02"]
[TimeControl "180+1"]
[Date "2022.03.01"]
[WhiteClock "0:00:21"]
[BlackClock "0:00:03"]

1. d4 {[%clk 0:03:00]}  Nf6 {[%clk 0:02:58]} 2. Nf3 {[%clk 0:03:00]}  e6 {[%clk 0:02:56]} 3. g3 {[%clk 0:03:00]}  d5 {[%clk 0:02:54]} 4. Bg2 {[%clk 0:03:00]}  b5 {[%clk 0:02:52]} 5. O-O {[%clk 0:03:01]}  Nbd7 {[%clk 0:02:50]} 6. a4 {[%clk 0:02:58]}  b4 {[%clk 0:02:49]} 7. c4 {[%clk 0:02:57]}  bxc3 {[%clk 0:02:49]} 8. bxc3 {[%clk 0:02:57]}  Ba6 {[%clk 0:02:46]} 9. Re1 {[%clk 0:02:53]}  Be7 {[%clk 0:02:43]} 10. Ba3 {[%clk 0:02:52]}  O-O {[%clk 0:02:41]} 11. Nbd2 {[%clk 0:02:44]}  c6 {[%clk 0:02:40]} 12. e4 {[%clk 0:02:39]}  Bxa3 {[%clk 0:02:36]} 13. Rxa3 {[%clk 0:02:38]}  Nb6 {[%clk 0:02:27]} 14. a5 {[%clk 0:02:31]}  Nc4 {[%clk 0:02:27]} 15. Nxc4 {[%clk 0:02:31]}  Bxc4 {[%clk 0:02:26]} 16. Ne5 {[%clk 0:02:25]}  Bb5 {[%clk 0:02:11]} 17. exd5 {[%clk 0:02:23]}  cxd5 {[%clk 0:02:04]} 18. c4 {[%clk 0:02:23]}  Ba6 {[%clk 0:02:03]} 19. c5 {[%clk 0:02:10]}  Qc7 {[%clk 0:02:02]} 20. Ree3 {[%clk 0:01:58]}  Rab8 {[%clk 0:02:01]} 21. Reb3 {[%clk 0:01:57]}  h6 {[%clk 0:01:44]} 22. Rxb8 {[%clk 0:01:56]}  Rxb8 {[%clk 0:01:43]} 23. Rb3 {[%clk 0:01:57]}  Rxb3 {[%clk 0:01:01]} 24. Qxb3 {[%clk 0:01:55]}  Qxa5 {[%clk 0:01:01]} 25. Qb8+ {[%clk 0:01:42]}  Kh7 {[%clk 0:01:01]} 26. Qb1+ {[%clk 0:01:42]}  Kg8 {[%clk 0:00:58]} 27. c6 {[%clk 0:01:30]}  Ne8 {[%clk 0:00:50]} 28. Bf1 {[%clk 0:01:26]}  Bxf1 {[%clk 0:00:43]} 29. Kxf1 {[%clk 0:01:27]}  Qb6 {[%clk 0:00:36]} 30. Qc2 {[%clk 0:01:01]}  f6 {[%clk 0:00:34]} 31. Qg6 {[%clk 0:00:55]}  Nd6 {[%clk 0:00:28]} 32. Nd7 {[%clk 0:00:50]}  Qxc6 {[%clk 0:00:25]} 33. Nxf6+ {[%clk 0:00:48]}  Kf8 {[%clk 0:00:25]} 34. Nh7+ {[%clk 0:00:39]}  Kg8 {[%clk 0:00:23]} 35. Nf6+ {[%clk 0:00:40]}  Kf8 {[%clk 0:00:23]} 36. Nh5 {[%clk 0:00:40]}  Nf5 {[%clk 0:00:15]} 37. Nf4 {[%clk 0:00:36]}  Nxd4 {[%clk 0:00:07]} 38. Kg2 {[%clk 0:00:26]}  Qd6 {[%clk 0:00:04]} 39. Qd3 {[%clk 0:00:21]}  Qe5 {[%clk 0:00:03]} 40. Ng6+ {[%clk 0:00:21]} 1-0


[Site "https://www.chess.com"]

[Event "Titled Tuesday Blitz March 01 Early 2022"]
[White "Bintang, Rasyid A. Hidayat"]
[Black "Terzi, Alexei"]
[WhiteFideId "7105355"]
[BlackFideId "13505076"]
[WhiteElo "2347"]
[BlackElo "2031"]
[Result "0-1"]
[Round "02"]
[TimeControl "180+1"]
[Date "2022.03.01"]
[WhiteClock "0:01:29"]
[BlackClock "0:02:08"]

1. d4 {[%clk 0:03:00]}  Nf6 {[%clk 0:02:59]} 2. Bf4 {[%clk 0:03:00]}  d5 {[%clk 0:02:58]} 3. e3 {[%clk 0:03:00]}  e6 {[%clk 0:02:59]} 4. Nd2 {[%clk 0:03:00]}  Bd6 {[%clk 0:02:59]} 5. Ngf3 {[%clk 0:02:53]}  O-O {[%clk 0:02:59]} 6. Bd3 {[%clk 0:02:51]}  Qe7 {[%clk 0:02:58]} 7. O-O {[%clk 0:02:44]}  Nbd7 {[%clk 0:02:58]} 8. Ne5 {[%clk 0:02:42]}  Ne8 {[%clk 0:02:49]} 9. Qh5 {[%clk 0:02:29]}  g6 {[%clk 0:02:48]} 10. Qh3 {[%clk 0:02:22]}  f6 {[%clk 0:02:45]} 11. Nef3 {[%clk 0:01:54]}  e5 {[%clk 0:02:44]} 12. dxe5 {[%clk 0:01:52]}  fxe5 {[%clk 0:02:39]} 13. Bg5 {[%clk 0:01:50]}  Ndf6 {[%clk 0:02:38]} 14. Qh4 {[%clk 0:01:42]}  e4 {[%clk 0:02:38]} 15. Bxe4 {[%clk 0:01:40]}  dxe4 {[%clk 0:02:38]} 16. Nxe4 {[%clk 0:01:37]}  Qxe4 {[%clk 0:02:34]} 17. Bxf6 {[%clk 0:01:35]}  Nxf6 {[%clk 0:02:33]} 18. Qh6 {[%clk 0:01:35]}  Ng4 {[%clk 0:02:14]} 19. Qh4 {[%clk 0:01:29]}  Rxf3 {[%clk 0:02:08]} 20. gxf3 {[%clk 0:01:29]}  Qxf3 {[%clk 0:02:08]} 0-1


[Site "https://www.chess.com"]